bitfinex/quotes_BTCUSD_20250421
["timestamp","ask_amount","ask_price","bid_price","bid_amount"]
[1745212641803,0.0028673,87194.0,87184.0,0.43684]
[1745212641992,0.11944791,87193.0,87184.0,0.43684]
[1745212642163,0.0028673,87192.0,87184.0,0.43684]
[1745212642364,0.11944791,87191.0,87184.0,0.43684]
[1745212642885,0.00013554,87194.0,87184.0,0.43684]
[1745212643250,0.35899073,87195.0,87184.0,0.43684]
[1745212643444,0.35899073,87195.0,87184.0,0.43697554]
[1745212645555,0.0494,87199.0,87184.0,0.43697554]
[1745212645868,0.11944791,87198.0,87184.0,0.43697554]
[1745212646589,0.01964844,87204.0,87184.0,0.43697554]
[1745212646884,0.0474,87208.0,87185.0,0.0487]
[1745212647171,0.11944791,87207.0,87185.0,0.0487]
[1745212647626,0.11244791,87207.0,87185.0,0.0487]
[1745212652681,0.0474,87217.0,87186.0,0.11944791]
[1745212652994,0.11944791,87216.0,87187.0,0.0487]
[1745212653180,0.11944791,87216.0,87187.0,0.16814791]
[1745212655267,0.11244791,87216.0,87188.0,0.11944791]
[1745212662027,0.11244791,87216.0,87189.0,0.0968]
[1745212662918,0.10544791,87216.0,87189.0,0.0968]
[1745212668530,0.10544791,87216.0,87190.0,0.4164]
[1745212668686,0.10544791,87216.0,87192.0,0.34]
[1745212671057,0.09844791,87216.0,87192.0,0.34]
[1745212673690,0.09844791,87216.0,87193.0,0.0968]
[1745212674112,0.09844791,87216.0,87194.0,0.0491]
[1745212677508,0.09844791,87216.0,87194.0,0.3891]
[1745212678107,0.0474,87217.0,87194.0,0.50854791]
[1745212678519,0.0455,87227.0,87196.0,0.0774]
[1745212678727,0.11244791,87225.0,87198.0,0.0491]
[1745212678932,0.0455,87227.0,87200.0,0.0491]
[1745212679136,0.0455,87227.0,87201.0,0.11944791]
[1745212679353,0.0455,87227.0,87202.0,0.0476]
[1745212679556,0.0455,87227.0,87203.0,0.11944791]
[1745212680334,0.00371099,87226.0,87202.0,0.0476]
[1745212680699,0.00371099,87226.0,87203.0,0.09676]
[1745212680903,0.000845,87226.0,87204.0,0.16704791]
[1745212682657,0.0008446,87228.0,87204.0,0.16704791]
[1745212684203,0.0008446,87228.0,87205.0,0.09676]
[1745212684406,0.0008446,87228.0,87205.0,0.21620791]
[1745212684662,0.0008446,87228.0,87206.0,0.0476]
[1745212686555,0.0929,87235.0,87206.0,0.0476]
[1745212686779,0.12231391,87234.0,87206.0,0.0476]
[1745212687524,0.0453,87235.0,87208.0,0.0483]
[1745212687736,0.0004228,87238.0,87210.0,0.0483]
[1745212687949,0.0494452,87245.0,87212.0,0.0483]
[1745212688153,0.0494452,87245.0,87214.0,0.0483]
[1745212688356,0.0494452,87245.0,87216.0,0.0483]
[1745212688570,0.0494452,87245.0,87218.0,0.0483]
[1745212688798,0.0494452,87245.0,87220.0,0.0483]
[1745212689016,0.0494452,87245.0,87221.0,0.00229247]
[1745212689182,0.00129779,87239.0,87220.0,0.0483]
[1745212689794,0.00129779,87239.0,87221.0,0.09676]
[1745212694150,0.04514495,87245.0,87222.0,0.9812]
[1745212694355,0.16466541,87245.0,87222.0,0.9812]
[1745212694560,0.11944791,87244.0,87222.0,0.9812]
[1745212696142,0.11944791,87244.0,87223.0,0.00229261]
[1745212696811,0.11944791,87244.0,87222.0,0.9812]
[1745212700425,0.01454085,87243.0,87222.0,0.9812]
[1745212700627,0.16358022,87240.0,87222.0,0.9812]
[1745212700960,0.0465,87238.0,87223.0,0.09676]
[1745212701167,0.11944791,87237.0,87223.0,0.09676]
[1745212702006,0.11244791,87237.0,87223.0,0.09676]
[1745212702762,0.11244791,87237.0,87222.0,0.9812]
[1745212702961,0.11244791,87237.0,87224.0,0.09676]
[1745212709757,0.10544791,87237.0,87224.0,0.09676]
[1745212717442,0.09844791,87237.0,87224.0,0.09676]
[1745212721493,0.0461,87236.0,87225.0,1.07792]
[1745212721702,0.16554791,87236.0,87226.0,0.09672]
[1745212725305,0.11944791,87235.0,87226.0,0.09672]
[1745212725507,0.0498,87234.0,87226.0,0.09672]
[1745212725712,0.11944791,87233.0,87227.0,0.09672]
[1745212725922,0.11944791,87233.0,87228.0,0.09672]
[1745212727588,0.43103864,87233.0,87228.0,0.09672]
[1745212728499,0.31159073,87233.0,87228.0,0.09672]
[1745212730200,0.0498,87243.0,87228.0,0.09672]
[1745212730445,0.31159073,87246.0,87229.0,0.0303]
[1745212730645,0.11952046,87245.0,87229.0,0.0303]
[1745212730837,0.11952046,87245.0,87228.0,0.09672]
[1745212732995,0.11252046,87245.0,87228.0,0.09672]
[1745212735414,0.11252046,87245.0,87229.0,0.09672]
[1745212737478,0.11252046,87245.0,87229.0,0.13713908]
[1745212739795,0.0468,87243.0,87229.0,0.13713908]
[1745212740014,0.11944791,87242.0,87229.0,0.13713908]
[1745212740679,0.11244791,87242.0,87229.0,0.13713908]
[1745212748483,0.0468,87243.0,87229.0,0.13713908]
[1745212748681,0.16624791,87243.0,87229.0,0.13713908]
[1745212751055,0.16624791,87243.0,87230.0,0.98108]
[1745212752513,0.12698791,87243.0,87230.0,0.98108]
[1745212752874,0.1920644,87246.0,87231.0,0.00229266]
[1745212753045,0.1850644,87246.0,87231.0,0.00229266]
[1745212753261,0.1810244,87246.0,87230.0,0.98153239]
[1745212753436,0.06351267,87246.0,87231.0,0.00229235]
[1745212753997,0.00633613,87246.0,87231.0,0.00229235]
[1745212754232,0.0004224,87277.0,87231.0,0.00229235]
[1745212755528,0.0454,87256.0,87230.0,0.98153239]
[1745212755945,0.094,87256.0,87231.0,0.09668]
[1745212756162,0.094,87256.0,87230.0,0.98153239]
[1745212756347,0.0928448,87256.0,87232.0,0.09668]
[1745212756567,0.11944791,87255.0,87232.0,0.09668]
[1745212756732,0.11944791,87255.0,87233.0,0.09668]
[1745212757120,0.11944791,87255.0,87234.0,1.07776]
[1745212757327,0.11989998,87255.0,87234.0,1.08643596]
[1745212760829,0.045,87254.0,87234.0,1.08643596]
[1745212763980,0.038,87254.0,87234.0,1.08643596]
[1745212769751,0.0471,87253.0,87234.0,1.08643596]
[1745212769971,0.0921,87251.0,87234.0,1.08643596]
[1745212771723,0.0851,87251.0,87234.0,1.08643596]
[1745212773356,0.045,87250.0,87235.0,0.09664]
[1745212778100,0.045,87250.0,87236.0,0.981]
[1745212779642,0.038,87250.0,87236.0,0.981]
[1745212782995,0.038,87250.0,87237.0,0.09664]
[1745212787224,0.031,87250.0,87237.0,0.09664]
[1745212787850,0.031,87250.0,87238.0,0.981]
[1745212789405,0.01454085,87247.0,87239.0,0.09664]
[1745212789604,0.01454085,87245.0,87239.0,0.09664]
[1745212789720,0.0494,87242.0,87239.0,0.43664]
[1745212789926,0.16884791,87241.0,87239.0,0.43664]
[1745212790146,0.0494,87241.0,87240.0,0.43664]
[1745212790803,0.0988,87241.0,87240.0,0.43664]
[1745212792727,0.0988,87241.0,87240.0,0.09664]
[1745212793408,0.0496,87241.0,87240.0,0.09664]
[1745212793645,0.04248,87241.0,87240.0,0.09664]
[1745212795057,0.03548,87241.0,87240.0,0.09664]
[1745212796551,0.08488,87241.0,87240.0,0.09664]
[1745212798752,0.08488,87241.0,87238.0,0.981]
[1745212798980,0.0494,87239.0,87238.0,0.981]
[1745212799188,0.21812415,87239.0,87238.0,1.0776]
[1745212799387,0.21809285,87239.0,87238.0,1.0776]
[1745212800406,0.2326337,87239.0,87238.0,0.981]
[1745212800616,0.2326337,87239.0,87238.0,1.4176]
[1745212800845,0.2326337,87239.0,87238.0,1.321]
[1745212801353,0.2326337,87239.0,87238.0,1.4176]
[1745212802729,0.2256337,87239.0,87238.0,1.4176]
[1745212804408,0.09164494,87239.0,87238.0,1.4176]
[1745212805118,0.4162,87249.0,87238.0,1.0776]
[1745212805348,0.11944791,87248.0,87238.0,1.0776]
[1745212807926,0.0959,87247.0,87238.0,1.0776]
[1745212808189,0.11944791,87246.0,87238.0,1.0776]
[1745212810268,0.11244791,87246.0,87238.0,1.0776]
[1745212811792,0.11244791,87246.0,87239.0,1.07768]
[1745212815144,0.0959,87247.0,87239.0,1.07768]
[1745212815145,0.04055612,87247.0,87239.0,1.07768]
[1745212815354,0.02710612,87247.0,87239.0,1.07768]
[1745212815777,0.4162,87249.0,87239.0,1.07768]
[1745212818005,0.0496,87248.0,87239.0,1.07768]
[1745212819391,0.001,87250.0,87239.0,0.98108]
[1745212819591,0.001,87250.0,87240.0,0.0966]
[1745212820922,0.12044791,87250.0,87240.0,0.0966]
[1745212821123,0.12044791,87250.0,87239.0,0.98108]
[1745212821353,0.12044791,87250.0,87241.0,0.0966]
[1745212821759,0.12044791,87250.0,87239.0,0.98108]
[1745212821963,0.12044791,87250.0,87242.0,0.0966]
[1745212822361,0.12044791,87250.0,87243.0,0.0966]
[1745212822591,0.12044791,87250.0,87244.0,0.0966]
[1745212822790,0.12044791,87250.0,87245.0,0.0966]
[1745212825809,0.11344791,87250.0,87245.0,0.0976]
[1745212828576,0.11344791,87250.0,87246.0,0.981]
[1745212831428,0.11344791,87250.0,87246.0,0.982]
[1745212831643,0.11344791,87250.0,87247.0,0.00888406]
[1745212833000,0.4092,87257.0,87247.0,0.00888406]
[1745212833241,0.11944791,87254.0,87247.0,0.00888406]
[1745212833444,0.4092,87257.0,87247.0,0.00888406]
[1745212833650,0.40265207,87257.0,87247.0,0.17236616]
[1745212833833,0.11944791,87256.0,87247.0,0.17236616]
[1745212834661,0.40265207,87257.0,87247.0,0.17236616]
[1745212834864,0.52209998,87257.0,87247.0,0.17236616]
[1745212837753,0.52209998,87257.0,87248.0,0.34]
[1745212838160,0.52209998,87257.0,87249.0,0.00871147]
[1745212840097,0.52209998,87257.0,87250.0,0.43656]
[1745212840507,0.52209998,87257.0,87251.0,0.00871147]
[1745212841324,0.51509998,87257.0,87251.0,0.00871147]
[1745212845813,0.51509998,87257.0,87252.0,0.98092]
[1745212846032,0.51509998,87257.0,87253.0,0.00864402]
[1745212848869,0.50809998,87257.0,87253.0,0.34864402]
[1745212850632,0.50809998,87257.0,87254.0,0.43656]
[1745212850936,0.50809998,87257.0,87254.0,0.09656]
[1745212851110,0.50809998,87257.0,87255.0,0.00864402]
[1745212853090,0.50809998,87257.0,87256.0,1.07748]
[1745212853518,0.50809998,87257.0,87256.0,1.08468844]
[1745212856555,0.50109998,87257.0,87256.0,1.08468844]
[1745212861003,0.50209998,87257.0,87256.0,0.98812844]
[1745212861215,0.66070364,87257.0,87256.0,1.08464844]
[1745212861503,0.66070364,87257.0,87256.0,0.98812844]
[1745212861727,0.66070364,87257.0,87256.0,1.42464844]
[1745212862288,0.66070364,87257.0,87256.0,0.98812844]
[1745212862513,0.15864085,87235.0,87234.0,0.98092]
[1745212862744,0.27808876,87235.0,87234.0,0.98092]
[1745212862961,0.65970364,87235.0,87234.0,1.07744]
[1745212864428,0.65270364,87235.0,87234.0,1.07744]
[1745212866941,0.65270364,87235.0,87234.0,0.98092]
[1745212867150,0.65270364,87235.0,87234.0,1.07748]
[1745212867364,0.65270364,87235.0,87230.0,0.09656]
[1745212867365,0.05754085,87231.0,87230.0,0.09656]
[1745212867576,0.26888876,87231.0,87230.0,0.09656]
[1745212871386,0.05754085,87219.0,87218.0,0.0008446]
[1745212871604,0.55815157,87219.0,87218.0,0.0008446]
[1745212871823,0.54361072,87219.0,87218.0,0.0008446]
[1745212872173,0.55115157,87219.0,87218.0,0.0008446]
[1745212875299,0.55115157,87219.0,87218.0,0.0974046]
[1745212880055,0.54415157,87219.0,87218.0,0.0974046]
[1745212887511,0.53715157,87219.0,87218.0,0.0974046]
[1745212890813,0.40316281,87219.0,87218.0,0.0974046]
[1745212891035,0.00045179,87231.0,87218.0,0.0984046]
[1745212891243,0.00045179,87231.0,87220.0,0.0479]
[1745212891459,0.043,87239.0,87220.0,0.0479]
[1745212891682,0.31066977,87245.0,87220.0,0.04835179]
[1745212891888,0.11944791,87244.0,87220.0,0.04835179]
[1745212893822,0.043,87238.0,87220.0,0.04835179]
[1745212894032,0.043,87233.0,87221.0,0.09656]
[1745212894236,0.16244791,87233.0,87220.0,0.04835179]
[1745212894449,0.16244791,87233.0,87222.0,0.09656]
[1745212895317,0.13398876,87232.0,87223.0,0.09656]
[1745212895745,0.12698876,87232.0,87223.0,0.09656]
[1745212895963,0.12698876,87232.0,87220.0,0.00045179]
[1745212896350,0.12698876,87232.0,87221.0,0.09656]
[1745212900611,0.01454085,87230.0,87221.0,0.09656]
[1745212900811,0.01454085,87228.0,87221.0,0.09656]
[1745212901012,0.01454085,87226.0,87221.0,0.09656]
[1745212901324,0.11944791,87225.0,87221.0,0.09656]
[1745212902658,0.11944791,87225.0,87222.0,0.09652]
[1745212903373,0.11244791,87225.0,87222.0,0.09652]
[1745212904808,0.06364085,87224.0,87220.0,0.00045179]
[1745212905006,0.10664085,87224.0,87223.0,0.09652]
[1745212905158,0.22608876,87224.0,87223.0,0.09652]
[1745212905368,0.22708876,87224.0,87223.0,0.09652]
[1745212906415,0.53775853,87224.0,87223.0,0.09652]
[1745212910185,0.48865853,87224.0,87223.0,0.09652]
[1745212910942,0.48165853,87224.0,87223.0,0.09652]
[1745212911451,0.48265853,87224.0,87223.0,0.09656]
[1745212915473,0.47511768,87224.0,87223.0,0.09656]
[1745212916651,0.47511768,87224.0,87214.0,0.98144]
[1745212916857,0.11944791,87223.0,87215.0,0.09656]
[1745212917277,0.043,87218.0,87215.0,0.09656]
[1745212918755,0.036,87218.0,87215.0,0.09656]
[1745212922445,0.036,87218.0,87216.0,1.07788]
[1745212922806,0.036,87218.0,87217.0,0.09652]
[1745212925908,0.0826,87222.0,87217.0,0.09652]
[1745212926064,0.036,87218.0,87217.0,0.09652]
[1745212926476,0.029,87218.0,87217.0,0.09652]
[1745212927044,0.029,87218.0,87216.0,0.98136]
[1745212927270,0.20968876,87217.0,87216.0,0.98136]
[1745212927745,0.20968876,87217.0,87216.0,1.07788]
[1745212928257,0.25878876,87217.0,87216.0,1.07788]
[1745212932603,0.19514791,87217.0,87216.0,1.07788]
[1745212932988,0.14844791,87217.0,87216.0,1.07788]
[1745212933167,0.029,87217.0,87216.0,1.07788]
[1745212933384,0.31066977,87221.0,87216.0,1.07788]
[1745212933559,0.11944791,87220.0,87216.0,1.07788]
[1745212933920,0.029,87217.0,87216.0,1.07788]
[1745212934165,0.022,87217.0,87216.0,1.07788]
[1745212936023,0.023,87217.0,87216.0,1.07796]
[1745212938209,0.0721,87217.0,87216.0,1.07796]
[1745212941659,0.0731,87217.0,87216.0,1.07796]
[1745212941944,0.0661,87217.0,87216.0,1.07796]
[1745212942555,0.18554791,87217.0,87216.0,1.07796]
[1745212949629,0.17854791,87217.0,87216.0,1.07796]
[1745212950969,0.17754791,87217.0,87216.0,1.07796]
[1745212951187,0.17854791,87217.0,87216.0,1.07796]
[1745212952159,0.19308876,87217.0,87216.0,1.07796]
[1745212952357,0.24158876,87217.0,87216.0,1.07796]
[1745212952883,0.22704791,87217.0,87216.0,1.07796]
[1745212955273,0.22704791,87217.0,87216.0,1.41796]
[1745212955496,0.002,87217.0,87216.0,1.41796]
[1745212955709,0.001,87217.0,87216.0,1.41796]
[1745212957337,0.00345179,87226.0,87217.0,0.34]
[1745212957538,0.00345179,87226.0,87217.0,0.34007255]
[1745212958392,0.11944791,87225.0,87217.0,0.34007255]
[1745212958596,0.0491,87224.0,87217.0,0.34007255]
[1745212958799,0.11944791,87223.0,87217.0,0.34007255]
[1745212965309,0.11244791,87223.0,87217.0,0.34007255]
[1745212966595,0.11244791,87223.0,87217.0,7.255e-05]
[1745212969728,0.00345179,87226.0,87217.0,7.255e-05]
[1745212969928,0.1228997,87226.0,87217.0,7.255e-05]
[1745212973144,0.1158997,87226.0,87217.0,7.255e-05]
[1745212974672,0.1158997,87226.0,87218.0,0.09648]
[1745212979520,0.1158997,87226.0,87219.0,0.98132]
[1745212980868,0.00345179,87226.0,87219.0,0.98132]
[1745212984215,0.00345179,87226.0,87220.0,0.09648]
[1745212988447,0.00445179,87226.0,87221.0,1.07776]
[1745212988636,0.00013543,87226.0,87222.0,0.09648]
[1745212991740,0.14929114,87235.0,87222.0,0.09648]
[1745212992006,0.11944791,87234.0,87222.0,0.09648]
[1745212993809,0.14929114,87235.0,87222.0,0.09648]
[1745212994023,0.14929114,87235.0,87223.0,0.0022929]
[1745212995891,0.14929114,87235.0,87222.0,0.09648]
[1745212996527,0.14229114,87235.0,87222.0,0.43648]
[1745212997563,0.0464,87236.0,87222.0,0.43648]
[1745213004094,0.0394,87236.0,87222.0,0.43648]
[1745213005039,0.11944791,87235.0,87222.0,0.43648]
[1745213005259,0.0498,87234.0,87222.0,0.43648]
[1745213005498,0.16924791,87234.0,87222.0,0.43648]
[1745213008927,0.0394,87236.0,87222.0,0.43648]
[1745213008928,0.0394,87236.0,87223.0,0.00229282]
[1745213009139,0.0487,87244.0,87223.0,0.05099282]
[1745213009365,0.16814791,87244.0,87223.0,0.05099282]
[1745213009571,0.16814791,87244.0,87223.0,0.0487]
[1745213011906,0.16114791,87244.0,87223.0,0.0487]
[1745213016918,0.11944791,87243.0,87222.0,0.09648]
[1745213017123,0.0482,87242.0,87222.0,0.09648]
[1745213017306,0.0482,87238.0,87223.0,0.09644]
[1745213017515,0.11942596,87237.0,87223.0,0.09644]
[1745213017714,0.11942596,87237.0,87224.0,0.09644]
[1745213018170,0.001,87227.0,87225.0,1.0776]
[1745213018338,0.0482,87226.0,87206.0,0.00045179]
[1745213018545,0.0482,87226.0,87207.0,1.0776]
[1745213019514,0.0412,87226.0,87207.0,1.0776]
[1745213026113,0.048,87225.0,87207.0,1.0776]
[1745213027485,0.041,87225.0,87207.0,1.0776]
[1745213031541,0.041,87225.0,87208.0,0.00229288]
[1745213032829,0.041,87225.0,87209.0,0.09644]
[1745213033036,0.041,87225.0,87210.0,0.00229285]
[1745213034574,0.041,87225.0,87209.0,0.09644]
[1745213034935,0.034,87225.0,87209.0,0.09644]
[1745213035473,0.0476,87224.0,87209.0,0.09644]
[1745213037791,0.0476,87224.0,87210.0,0.98124]
[1745213042893,0.0406,87224.0,87210.0,0.98124]
[1745213043945,0.0479,87223.0,87210.0,0.98124]
[1745213044136,0.001,87222.0,87210.0,0.98124]
[1745213044390,0.0479,87221.0,87211.0,0.09644]
[1745213045693,0.0453,87220.0,87211.0,0.09644]
[1745213048673,0.0453,87220.0,87212.0,0.002293]
[1745213050351,0.01759,87220.0,87212.0,0.002293]
[1745213050803,0.01101,87220.0,87212.0,0.002293]
[1745213051010,0.01101,87220.0,87211.0,0.09644]
[1745213056737,0.0453,87220.0,87211.0,0.09644]
[1745213058074,0.0383,87220.0,87211.0,0.43644]
[1745213060694,0.0492,87219.0,87211.0,0.43644]
[1745213061193,0.0462,87218.0,87211.0,0.43644]
[1745213065928,0.0392,87218.0,87211.0,0.43644]
[1745213067789,0.02951,87218.0,87211.0,0.43644]
[1745213067943,0.01903,87218.0,87211.0,0.43644]
[1745213068139,0.0492,87219.0,87211.0,0.43644]
[1745213068353,0.0492,87219.0,87212.0,0.00229302]
[1745213069722,0.0371,87219.0,87212.0,0.00229302]
[1745213070080,0.001,87222.0,87212.0,0.00229302]
[1745213071844,0.001,87222.0,87213.0,0.98128]
[1745213072397,0.001,87225.0,87213.0,0.98128]
[1745213072570,0.001,87227.0,87214.0,0.00229299]
[1745213073556,0.044,87231.0,87214.0,0.00229299]
[1745213076347,0.1386,87232.0,87214.0,0.00229299]
[1745213076599,0.0492,87232.0,87214.0,0.00229299]
[1745213078757,0.0492,87232.0,87213.0,0.98128]
[1745213078950,0.044,87231.0,87213.0,0.98128]
[1745213079155,0.0932,87232.0,87213.0,0.98128]
[1745213079378,0.044,87231.0,87213.0,0.98128]
[1745213079803,0.0463,87230.0,87214.0,1.07764]
[1745213080006,0.04634518,87230.0,87214.0,1.07764]
[1745213080595,0.0495,87229.0,87214.0,1.07764]
[1745213080808,0.0495,87227.0,87214.0,1.07764]
[1745213081011,0.0495,87225.0,87214.0,1.07764]
[1745213081370,0.0425,87225.0,87214.0,1.07764]
[1745213082939,0.0463,87224.0,87214.0,1.07764]
[1745213083983,0.04210546,87224.0,87214.0,1.07764]
[1745213085435,0.0495,87223.0,87214.0,1.07764]
[1745213089007,0.0425,87223.0,87214.0,1.07764]
[1745213093883,0.0425,87223.0,87215.0,1.0776]
[1745213096646,0.0355,87223.0,87215.0,1.0776]
[1745213097756,0.0355,87223.0,87216.0,0.0964]
[1745213102632,0.0355,87223.0,87217.0,0.9812]
[1745213104622,0.0285,87223.0,87217.0,0.9812]
[1745213107402,0.0285,87223.0,87218.0,0.0964]
[1745213112272,0.0215,87223.0,87218.0,0.0964]
[1745213119982,0.0145,87223.0,87218.0,0.0964]
[1745213122284,0.0056,87223.0,87218.0,0.0964]
[1745213126707,0.0056,87223.0,87219.0,0.9812]
[1745213127668,0.0475,87229.0,87219.0,0.9812]
[1745213130766,0.0482,87228.0,87219.0,0.9812]
[1745213131396,0.0482,87228.0,87220.0,0.0964]
[1745213135587,0.0412,87228.0,87220.0,0.0964]
[1745213135758,0.02384517,87228.0,87220.0,0.0964]
[1745213136231,0.02384517,87228.0,87221.0,0.9812]
[1745213136582,0.0451,87227.0,87221.0,0.9812]
[1745213137620,0.0451,87227.0,87222.0,1.07756]
[1745213137824,0.0451,87227.0,87223.0,1.07756]
[1745213138040,0.0451,87227.0,87224.0,1.07756]
[1745213141884,0.16454791,87227.0,87186.0,0.00081686]
[1745213142088,0.0451,87226.0,87187.0,0.01454085]
[1745213142287,0.0451,87226.0,87189.0,0.01454085]
[1745213142439,0.0451,87226.0,87191.0,0.01454085]
[1745213142657,0.0451,87226.0,87192.0,0.12174078]
[1745213143288,0.0381,87226.0,87193.0,0.007]
[1745213143555,0.0381,87226.0,87194.0,0.12174078]
[1745213145248,0.0381,87226.0,87195.0,0.9812]
[1745213145456,0.0381,87226.0,87196.0,0.11944791]
[1745213146531,0.0381,87226.0,87197.0,0.03466447]
[1745213146736,0.03207,87226.0,87199.0,0.013]
[1745213146939,0.02384517,87228.0,87200.0,0.12174072]
[1745213147118,0.02384517,87228.0,87200.0,0.15411232]
[1745213147295,1e-08,87230.0,87200.0,0.15411232]
[1745213147515,0.11944792,87230.0,87200.0,0.15411232]
[1745213147831,0.044,87234.0,87200.0,0.15411232]
[1745213148034,0.11944791,87233.0,87200.0,0.15411232]
[1745213149280,0.044452,87234.0,87200.0,0.15411232]
[1745213150004,0.0488,87233.0,87200.0,0.15411232]
[1745213150380,0.0462,87232.0,87200.0,0.12174072]
[1745213150988,0.00564,87232.0,87200.0,0.12174072]
[1745213151247,0.04744,87233.0,87200.0,0.12174072]
[1745213152668,0.436932,87224.0,87200.0,0.12174072]
[1745213152996,0.37975183,87224.0,87200.0,0.12174072]
[1745213153374,0.32257166,87224.0,87200.0,0.12174072]
[1745213153683,0.26539149,87224.0,87200.0,0.12174072]
[1745213153876,0.20821132,87224.0,87200.0,0.12174072]
[1745213154085,0.0488,87223.0,87200.0,0.12174072]
[1745213154298,0.03382,87223.0,87200.0,0.12174072]
[1745213154635,0.20821132,87224.0,87200.0,0.12174072]
[1745213154931,0.15103115,87224.0,87200.0,0.12174072]
[1745213155350,0.09385098,87224.0,87200.0,0.12174072]
[1745213155558,0.03667081,87224.0,87200.0,0.12174072]
[1745213156197,0.02854081,87224.0,87200.0,0.11944791]
[1745213157895,0.0488,87223.0,87200.0,0.11944791]
[1745213158824,0.0418,87223.0,87200.0,0.11944791]
[1745213159451,0.0418,87223.0,87201.0,1.19700791]
[1745213161989,0.01234081,87224.0,87201.0,1.24560791]
[1745213162201,0.0226245,87226.0,87202.0,0.00229283]
[1745213162349,0.0226245,87226.0,87203.0,0.11944791]
[1745213162503,0.0226245,87226.0,87204.0,0.00229273]
[1745213162711,0.000452,87234.0,87204.0,0.00229273]
[1745213162942,0.11944791,87233.0,87204.0,0.00229273]
[1745213163852,0.000452,87234.0,87205.0,0.16464791]
[1745213164026,0.000452,87234.0,87206.0,0.00229258]
[1745213164252,0.000452,87234.0,87207.0,0.11944791]
[1745213164460,0.000452,87234.0,87208.0,0.00229258]
[1745213164642,0.000452,87234.0,87208.0,0.12174049]
[1745213165140,0.0457,87233.0,87208.0,0.12174049]
[1745213165718,1e-08,87233.0,87208.0,0.13040771]
[1745213165924,1e-08,87233.0,87209.0,0.049]
[1745213166126,1e-08,87233.0,87210.0,0.0022926]
[1745213166550,0.03905201,87235.0,87210.0,0.0022926]
[1745213166756,0.15849992,87235.0,87210.0,0.0027446]
[1745213167428,0.05641171,87242.0,87211.0,0.20081951]
[1745213167652,0.4162,87251.0,87215.0,0.01454085]
[1745213167872,0.11944791,87250.0,87217.0,0.049]
[1745213168132,0.11944791,87250.0,87219.0,0.049]
[1745213168306,0.11944791,87250.0,87220.0,0.2180602]
[1745213168898,0.11944791,87250.0,87221.0,0.045]
[1745213169147,0.4610458,87252.0,87222.0,0.16844791]
[1745213169386,0.044,87249.0,87222.0,0.16844791]
[1745213169796,0.0457,87248.0,87222.0,0.16844791]
[1745213172769,0.0457,87248.0,87223.0,0.98112]
[1745213172982,0.0457,87248.0,87224.0,0.11944791]
[1745213174242,0.0387,87248.0,87224.0,0.11944791]
[1745213179936,0.0456,87249.0,87224.0,0.11944791]
[1745213180146,0.0896,87249.0,87225.0,0.0471]
[1745213180340,0.0896,87249.0,87225.0,0.16654791]
[1745213180892,0.044,87251.0,87226.0,0.0966]
[1745213181090,0.0008458,87252.0,87227.0,0.0471]
[1745213181335,0.0008458,87252.0,87228.0,0.11944791]
[1745213181903,0.0404916,87253.0,87228.0,0.11944791]
[1745213185443,0.044845,87256.0,87229.0,0.0471]
[1745213185646,0.044845,87256.0,87231.0,0.0471]
[1745213185850,0.13585741,87255.0,87231.0,0.0471]
[1745213186055,0.044,87254.0,87231.0,0.0471]
[1745213186263,0.0121258,87256.0,87233.0,0.0471]
[1745213186476,0.0121258,87256.0,87235.0,0.0471]
[1745213186773,0.0121258,87256.0,87237.0,0.0471]
[1745213186913,0.0121258,87256.0,87238.0,0.09861206]
[1745213187808,0.0121258,87256.0,87238.0,0.10717358]
[1745213188345,0.0121258,87256.0,87238.0,0.10488152]
[1745213188550,0.0008448,87258.0,87238.0,0.10488152]
[1745213188738,0.0121258,87256.0,87238.0,0.10488152]
[1745213189616,0.0051258,87256.0,87238.0,0.10488152]
[1745213190221,0.12457371,87256.0,87239.0,0.09632]
[1745213191203,0.11944791,87255.0,87239.0,0.43632]
[1745213193041,0.11944791,87255.0,87241.0,0.34]
[1745213193691,0.11944791,87255.0,87241.0,0.37411099]
[1745213194376,0.0458,87254.0,87241.0,0.37411099]
[1745213194584,0.16554791,87253.0,87241.0,0.37411099]
[1745213197360,0.15854791,87253.0,87241.0,0.37411099]
[1745213197781,0.15854791,87253.0,87241.0,0.03411099]
[1745213197991,0.15854791,87253.0,87240.0,0.98096]
[1745213198217,0.15854791,87253.0,87240.0,1.01022473]
[1745213205130,0.15154791,87253.0,87240.0,1.01022473]
[1745213206005,0.0051258,87252.0,87240.0,1.01022473]
[1745213206205,0.11944791,87251.0,87240.0,1.01022473]
[1745213212147,0.11944791,87251.0,87241.0,0.09628]
[1745213212551,0.11944791,87251.0,87241.0,0.43628]
[1745213212955,0.11244791,87251.0,87241.0,0.43628]
[1745213214150,0.0483,87250.0,87241.0,0.34]
[1745213214489,0.0473,87248.0,87242.0,0.09628]
[1745213214709,0.11944791,87247.0,87242.0,0.09628]
[1745213217271,0.0483,87246.0,87243.0,0.09628]
[1745213217608,0.11944791,87245.0,87243.0,0.09628]
[1745213220777,0.11244791,87245.0,87243.0,0.09628]
[1745213225876,0.4162,87250.0,87243.0,0.09628]
[1745213226078,0.11944791,87249.0,87243.0,0.09628]
[1745213228524,0.11244791,87249.0,87243.0,0.09628]
[1745213229548,0.11244791,87249.0,87244.0,0.981]
[1745213230461,0.11244791,87249.0,87245.0,0.34]
[1745213231210,0.11244791,87249.0,87244.0,0.981]
[1745213233242,0.11244791,87249.0,87245.0,0.34]
[1745213235638,0.0051258,87245.0,87244.0,0.981]
[1745213235840,0.21987371,87245.0,87244.0,1.07724]
[1745213236282,0.21287371,87245.0,87244.0,1.07724]
[1745213236913,0.62907371,87245.0,87244.0,1.07724]
[1745213241241,0.64361456,87245.0,87244.0,1.07724]
[1745213243855,0.63661456,87245.0,87244.0,1.07724]
[1745213244252,0.63761456,87245.0,87244.0,1.07724]
[1745213250929,0.63661456,87245.0,87244.0,1.07724]
[1745213251312,0.63761456,87245.0,87244.0,1.07724]
[1745213251804,0.63061456,87245.0,87244.0,1.07724]
[1745213255724,0.01454085,87234.0,87231.0,0.02900924]